[Event "9th Amsterdam Science Park A 2019"]
[Site "Amsterdam"]
[Date "2019.07.06"]
[Round "1.1"]
[White "Meshkovs, Nikita"]
[Black "Zimmerman, Luc"]
[Result "*"]
[ECO "A20"]
[WhiteElo "2550"]
[BlackElo "2175"]
[Annotator "ChessBase"]
[PlyCount "20"]
[EventDate "2019.07.06"]
[EventType "swiss"]
[EventCountry "NED"]
[SourceTitle "playchess.com"]
[Source "ChessBase"]
[SourceQuality "1"]
[TimeControl "40/5400+30:1800+30"]

1. c4 {[%emt 0:00:00]} e5 {[%emt 0:00:14]} 2. g3 {[%emt 0:00:29]} Nf6 {[%emt 0:00:25]} 3. Bg2 {[%emt 0:00:46]} c6 {[%emt 0:00:02]} 4. Nf3 {[%emt 0:02:12]} e4 {[%emt 0:00:44]} 5. Nd4 {[%emt 0:00:06]} d5 {[%emt 0:07:43]} 6. cxd5 {[%emt 0:03:19]} Qxd5 {[%emt 0:07:52]} 7. Nc2 {[%emt 0:00:11]} Qh5 {[%emt 0:14:32]} 8. h3 {[%emt 0:01:02]} Bd6 {[%emt 0:07:20]} 9. Nc3 {[%emt 0:06:17]} Qg6 {[%emt 0:00:53]} 10. Ne3 {[%emt 0:00:15]} O-O {[%emt 0:01:03]} *

[Event "9th Amsterdam Science Park A 2019"]
[Site "Amsterdam"]
[Date "2019.07.06"]
[Round "1.1"]
[White "Meshkovs, Nikita"]
[Black "Zimmermann, Luc"]
[Result "1-0"]
[ECO "A20"]
[WhiteElo "2550"]
[BlackElo "2175"]
[Annotator "ChessBase"]
[PlyCount "59"]
[EventDate "2019.07.06"]
[EventType "swiss"]
[EventCountry "NED"]
[SourceTitle "playchess.com"]
[Source "ChessBase"]
[SourceQuality "1"]
[TimeControl "40/5400+30:1800+30"]

1. c4 {[%emt 0:00:00]} e5 {[%emt 0:00:14]} 2. g3 {[%emt 0:00:29]} Nf6 {[%emt 0:00:25]} 3. Bg2 {[%emt 0:00:46]} c6 {[%emt 0:00:02]} 4. Nf3 {[%emt 0:02:12]} e4 {[%emt 0:00:44]} 5. Nd4 {[%emt 0:00:06]} d5 {[%emt 0:07:43]} 6. cxd5 {[%emt 0:03:19]} Qxd5 {[%emt 0:07:52]} 7. Nc2 {[%emt 0:00:11]} Qh5 {[%emt 0:14:32]} 8. h3 {[%emt 0:01:02]} Bd6 {[%emt 0:07:20]} 9. Nc3 {[%emt 0:06:17]} Qg6 {[%emt 0:00:53]} 10. Ne3 {[%emt 0:00:15]} O-O {[%emt 0:01:03]} 11. b3 {[%emt 0:10:06]} Re8 {[%emt 0:13:04]} 12. Bb2 {[%emt 0:00:33]} Na6 {[%emt 0:03:37]} 13. a3 {[%emt 0:02:37]} Be6 {[%emt 0:11:12]} 14. b4 {[%emt 0:01:12]} Nc7 {[%emt 0:01:06]} 15. Qc2 {[%emt 0:00:51]} Be5 {[%emt 0:11:20]} 16. Rb1 {[%emt 0:08:32]} Bd5 {[%emt 0:12:13]} 17. Na4 {[%emt 0:16:03]} Bxb2 {[%emt 0:00:35]} 18. Qxb2 {[%emt 0:00:02]} Ne6 {[%emt 0:02:21]} 19. Rc1 {[%emt 0:01:31]} h5 {[%emt 0:00:38]} 20. h4 {[%emt 0:01:04]} Ng4 {[%emt 0:00:50]} 21. Bh3 {[%emt 0:00:43]} f5 {[%emt 0:00:59]} 22. Bxg4 {[%emt 0:02:53]} fxg4 {[%emt 0:00:01]} 23. Nc5 {[%emt 0:05:44]} b6 {[%emt 0:00:41]} 24. Nxe6 {[%emt 0:00:50]} Qxe6 {[%emt 0:00:14]} 25. O-O {[%emt 0:00:24]} Rf8 {[%emt 0:00:48]} 26. a4 {[%emt 0:00:59]} Rac8 {[%emt 0:01:01]} 27. a5 {[%emt 0:00:14]} Qe7 {[%emt 0:01:10]} 28. axb6 {[%emt 0:00:24]} axb6 {[%emt 0:00:00]} 29. Qd4 {[%emt 0:00:06]} Rfd8 {[%emt 0:00:51]} 30. Qxb6 {[%emt 0:06:36]} 1-0

[Event "9th Amsterdam Science Park A 2019"]
[Site "Amsterdam"]
[Date "2019.07.06"]
[Round "1.2"]
[White "Bekedam, Tyro"]
[Black "Gleizerov, Evgeny"]
[Result "0-1"]
[ECO "C02"]
[WhiteElo "2142"]
[BlackElo "2498"]
[Annotator "ChessBase"]
[PlyCount "72"]
[EventDate "2019.07.06"]
[EventType "swiss"]
[EventCountry "NED"]
[SourceTitle "playchess.com"]
[Source "ChessBase"]
[SourceQuality "1"]
[TimeControl "40/5400+30:1800+30"]

1. e4 {[%emt 0:00:00]} e6 {[%emt 0:00:00]} 2. d4 {[%emt 0:00:00]} d5 {[%emt 0:00:00]} 3. e5 {[%emt 0:00:58]} c5 {[%emt 0:00:00]} 4. f4 {[%emt 0:01:39]} Nc6 {[%emt 0:02:14]} 5. Ne2 {[%emt 0:03:20]} Nh6 {[%emt 0:07:37]} 6. Nd2 {[%emt 0:10:41]} cxd4 {[%emt 0:17:38]} 7. Nb3 {[%emt 0:02:17]} Nf5 {[%emt 0:02:37]} 8. g3 {[%emt 0:15:25]} Bb4+ {[%emt 0:06:16]} 9. Bd2 {[%emt 0:02:44]} Ne3 {[%emt 0:03:14]} 10. Qc1 {[%emt 0:00:25]} Bxd2+ {[%emt 0:00:45]} 11. Qxd2 {[%emt 0:00:16]} Qb6 {[%emt 0:01:11]} 12. Rc1 {[%emt 0:10:46]} Nc4 {[%emt 0:01:23]} 13. Qd3 {[%emt 0:02:28]} Nxb2 {[%emt 0:01:17]} 14. Qd2 {[%emt 0:05:06]} Nc4 {[%emt 0:01:12]} 15. Qd3 {[%emt 0:02:01]} Qb4+ {[%emt 0:11:56]} 16. Kf2 {[%emt 0:01:02]} Nb2 {[%emt 0:01:13]} 17. Qf3 {[%emt 0:01:51]} a5 {[%emt 0:01:53]} 18. Rb1 {[%emt 0:01:50]} Nc4 {[%emt 0:02:25]} 19. Bh3 {[%emt 0:01:46]} Na3 {[%emt 0:00:51]} 20. Rbd1 {[%emt 0:02:37]} Nxc2 {[%emt 0:01:06]} 21. Qd3 {[%emt 0:00:39]} Qb6 {[%emt 0:06:23]} 22. Qxc2 {[%emt 0:10:19]} d3+ {[%emt 0:00:49]} 23. Qc5 {[%emt 0:00:05]} Qxc5+ {[%emt 0:00:04]} 24. Nxc5 {[%emt 0:00:05]} dxe2 {[%emt 0:00:05]} 25. Rb1 {[%emt 0:03:33]} Nb4 {[%emt 0:01:40]} 26. a3 {[%emt 0:00:24]} Nc2 {[%emt 0:00:10]} 27. Kxe2 {[%emt 0:00:23]} Nxa3 {[%emt 0:00:05]} 28. Rb3 {[%emt 0:00:30]} Nc4 {[%emt 0:02:07]} 29. Nxb7 {[%emt 0:00:39]} a4 {[%emt 0:00:55]} 30. Rb4 {[%emt 0:00:17]} Bxb7 {[%emt 0:00:20]} 31. Rxb7 {[%emt 0:00:05]} O-O {[%emt 0:00:06]} 32. Ra1 {[%emt 0:00:54]} a3 {[%emt 0:00:14]} 33. Kd3 {[%emt 0:01:23]} g6 {[%emt 0:07:30]} 34. Bf1 {[%emt 0:02:02]} Rfc8 {[%emt 0:03:24]} 35. g4 {[%emt 0:01:17]} g5 {[%emt 0:00:32]} 36. Kd4 {[%emt 0:02:33]} Ra4 {[%emt 0:00:37]} 0-1

[Event "9th Amsterdam Science Park A 2019"]
[Site "Amsterdam"]
[Date "2019.07.06"]
[Round "1.3"]
[White "Ten Hertog, Hugo"]
[Black "Vroombout, Enrico"]
[Result "1-0"]
[ECO "B35"]
[WhiteElo "2484"]
[BlackElo "2141"]
[Annotator "ChessBase"]
[PlyCount "63"]
[EventDate "2019.07.06"]
[EventType "swiss"]
[EventCountry "NED"]
[SourceTitle "playchess.com"]
[Source "ChessBase"]
[SourceQuality "1"]
[TimeControl "40/5400+30:1800+30"]

1. e4 {[%emt 0:00:00]} c5 {[%emt 0:00:00]} 2. Nc3 {[%emt 0:00:10]} Nc6 {[%emt 0:00:00]} 3. Nge2 {[%emt 0:00:06]} g6 {[%emt 0:01:35]} 4. d4 {[%emt 0:00:06]} cxd4 {[%emt 0:00:03]} 5. Nxd4 {[%emt 0:00:05]} Bg7 {[%emt 0:00:03]} 6. Be3 {[%emt 0:01:52]} Nf6 {[%emt 0:02:22]} 7. Bc4 {[%emt 0:00:05]} O-O {[%emt 0:00:34]} 8. Bb3 {[%emt 0:00:04]} d6 {[%emt 0:00:27]} 9. h3 {[%emt 0:00:11]} Bd7 {[%emt 0:06:23]} 10. O-O {[%emt 0:00:08]} Rc8 {[%emt 0:01:22]} 11. Re1 {[%emt 0:02:35]} Na5 {[%emt 0:06:54]} 12. Qd3 {[%emt 0:02:53]} a6 {[%emt 0:01:47]} 13. Nd5 {[%emt 0:06:44]} e6 {[%emt 0:09:21]} 14. Nxf6+ {[%emt 0:06:36]} Bxf6 {[%emt 0:02:57]} 15. c3 {[%emt 0:00:09]} e5 {[%emt 0:14:05]} 16. Nc2 {[%emt 0:02:11]} Bb5 {[%emt 0:03:28]} 17. Qd1 {[%emt 0:06:17]} Nxb3 {[%emt 0:07:02]} 18. axb3 {[%emt 0:00:06]} Bc6 {[%emt 0:00:20]} 19. Nb4 {[%emt 0:04:51]} Bg7 {[%emt 0:09:48]} 20. Nxc6 {[%emt 0:01:06]} Rxc6 {[%emt 0:00:58]} 21. Qd5 {[%emt 0:00:16]} Kh8 {[%emt 0:04:53]} 22. b4 {[%emt 0:01:53]} f5 {[%emt 0:04:01]} 23. f3 {[%emt 0:00:16]} fxe4 {[%emt 0:04:58]} 24. fxe4 {[%emt 0:00:18]} Qh4 {[%emt 0:00:50]} 25. Rf1 {[%emt 0:02:51]} Rfc8 {[%emt 0:02:25]} 26. Rae1 {[%emt 0:04:51]} b5 {[%emt 0:03:02]} 27. Bd2 {[%emt 0:03:59]} g5 {[%emt 0:01:19]} 28. Rf5 {[%emt 0:09:12]} g4 {[%emt 0:00:48]} 29. hxg4 {[%emt 0:00:07]} Qxg4 {[%emt 0:00:22]} 30. Rg5 {[%emt 0:04:38]} Qd7 {[%emt 0:02:45]} 31. Rf1 {[%emt 0:00:24]} Qe8 {[%emt 0:03:00]} 32. Rf7 {[%emt 0:02:20]} 1-0

[Event "9th Amsterdam Science Park A 2019"]
[Site "Amsterdam"]
[Date "2019.07.06"]
[Round "1.4"]
[White "Van der Velde, Henk"]
[Black "Arnaudov, G. Petar"]
[Result "0-1"]
[ECO "A13"]
[WhiteElo "2135"]
[BlackElo "2478"]
[Annotator "ChessBase"]
[PlyCount "70"]
[EventDate "2019.07.06"]
[EventType "swiss"]
[EventCountry "NED"]
[SourceTitle "playchess.com"]
[Source "ChessBase"]
[SourceQuality "1"]
[TimeControl "40/5400+30:1800+30"]

1. c4 {[%emt 0:00:00]} e6 {[%emt 0:00:00]} 2. g3 {[%emt 0:00:00]} d5 {[%emt 0:00:00]} 3. Bg2 {[%emt 0:00:00]} Nf6 {[%emt 0:00:04]} 4. Nf3 {[%emt 0:00:07]} d4 {[%emt 0:00:34]} 5. a3 {[%emt 0:01:43]} c5 {[%emt 0:00:41]} 6. b4 {[%emt 0:02:06]} a5 {[%emt 0:00:06]} 7. b5 {[%emt 0:01:16]} Bd6 {[%emt 0:01:33]} 8. d3 {[%emt 0:02:49]} O-O {[%emt 0:00:25]} 9. e4 {[%emt 0:06:19]} Nfd7 {[%emt 0:08:21]} 10. O-O {[%emt 0:09:31]} f5 {[%emt 0:00:57]} 11. Ng5 {[%emt 0:17:28]} Nf6 {[%emt 0:05:46]} 12. e5 {[%emt 0:03:48]} Bxe5 {[%emt 0:00:46]} 13. Re1 {[%emt 0:00:11]} Ng4 {[%emt 0:14:09]} 14. Ra2 {[%emt 0:23:59]} h6 {[%emt 0:02:28]} 15. Nxe6 {[%emt 0:02:23]} Bxe6 {[%emt 0:00:49]} 16. f4 {[%emt 0:04:02]} Ra7 {[%emt 0:18:54]} 17. fxe5 {[%emt 0:03:11]} b6 {[%emt 0:00:56]} 18. Rae2 {[%emt 0:03:26]} Rd7 {[%emt 0:03:48]} 19. Qc2 {[%emt 0:02:58]} g5 {[%emt 0:04:57]} 20. h3 {[%emt 0:05:35]} Ne3 {[%emt 0:05:30]} 21. Bxe3 {[%emt 0:00:19]} dxe3 {[%emt 0:00:04]} 22. Rxe3 {[%emt 0:00:27]} f4 {[%emt 0:00:31]} 23. gxf4 {[%emt 0:02:31]} gxf4 {[%emt 0:00:18]} 24. Rf3 {[%emt 0:00:25]} Rg7 {[%emt 0:02:56]} 25. Kf1 {[%emt 0:01:53]} Qg5 {[%emt 0:01:30]} 26. Nc3 {[%emt 0:01:24]} Nd7 {[%emt 0:00:32]} 27. Qe2 {[%emt 0:01:34]} Nxe5 {[%emt 0:02:47]} 28. Ne4 {[%emt 0:00:09]} Qg6 {[%emt 0:01:11]} 29. Rd1 {[%emt 0:02:01]} Nxc4 {[%emt 0:02:24]} 30. dxc4 {[%emt 0:00:47]} Kh8 {[%emt 0:00:45]} 31. Rd2 {[%emt 0:00:57]} Rfg8 {[%emt 0:01:16]} 32. Nd6 {[%emt 0:01:46]} Qf6 {[%emt 0:01:52]} 33. Ne4 {[%emt 0:00:48]} Qa1+ {[%emt 0:00:32]} 34. Rd1 {[%emt 0:00:05]} Rxg2 {[%emt 0:00:32]} 35. Rxa1 {[%emt 0:00:54]} Rg1+ {[%emt 0:00:12]} 0-1

[Event "9th Amsterdam Science Park A 2019"]
[Site "Amsterdam"]
[Date "2019.07.06"]
[Round "1.5"]
[White "Ulibyn, Mikhail"]
[Black "Pham, Khoi"]
[Result "*"]
[ECO "E92"]
[WhiteElo "2469"]
[BlackElo "2133"]
[Annotator "ChessBase"]
[PlyCount "27"]
[EventDate "2019.07.06"]
[EventType "swiss"]
[EventCountry "NED"]
[SourceTitle "playchess.com"]
[Source "ChessBase"]
[SourceQuality "1"]
[TimeControl "40/5400+30:1800+30"]

1. c4 {[%emt 0:05:34]} g6 {[%emt 0:00:00]} 2. d4 {[%emt 0:01:18]} Nf6 {[%emt 0:00:08]} 3. Nc3 {[%emt 0:01:17]} Bg7 {[%emt 0:00:06]} 4. e4 {[%emt 0:00:55]} d6 {[%emt 0:00:06]} 5. Nf3 {[%emt 0:01:32]} O-O {[%emt 0:00:28]} 6. Be2 {[%emt 0:00:44]} e5 {[%emt 0:00:14]} 7. O-O {[%emt 0:01:48]} Nc6 {[%emt 0:02:25]} 8. d5 {[%emt 0:01:23]} Ne7 {[%emt 0:00:09]} 9. Nd2 {[%emt 0:00:50]} a5 {[%emt 0:00:52]} 10. a3 {[%emt 0:01:01]} Nd7 {[%emt 0:01:14]} 11. Rb1 {[%emt 0:01:42]} f5 {[%emt 0:01:03]} 12. b4 {[%emt 0:00:58]} Kh8 {[%emt 0:04:57]} 13. Qc2 {[%emt 0:02:14]} c6 {[%emt 0:03:19]} 14. dxc6 {[%emt 0:20:28]} *

[Event "9th Amsterdam Science Park A 2019"]
[Site "Amsterdam"]
[Date "2019.07.06"]
[Round "1.5"]
[White "Ulybin, Mikhail"]
[Black "Pham, Khoi"]
[Result "1-0"]
[ECO "E97"]
[WhiteElo "2469"]
[BlackElo "2133"]
[Annotator "ChessBase"]
[PlyCount "71"]
[EventDate "2019.07.06"]
[EventType "swiss"]
[EventCountry "NED"]
[SourceTitle "playchess.com"]
[Source "ChessBase"]
[SourceQuality "1"]
[TimeControl "40/5400+30:1800+30"]

1. c4 {[%emt 0:05:34]} g6 {[%emt 0:00:00]} 2. d4 {[%emt 0:01:18]} Nf6 {[%emt 0:00:08]} 3. Nc3 {[%emt 0:01:17]} Bg7 {[%emt 0:00:06]} 4. e4 {[%emt 0:00:55]} d6 {[%emt 0:00:06]} 5. Nf3 {[%emt 0:01:32]} O-O {[%emt 0:00:28]} 6. Be2 {[%emt 0:00:44]} e5 {[%emt 0:00:14]} 7. O-O {[%emt 0:01:48]} Nc6 {[%emt 0:02:25]} 8. d5 {[%emt 0:01:23]} Ne7 {[%emt 0:00:09]} 9. Nd2 {[%emt 0:00:50]} a5 {[%emt 0:00:52]} 10. a3 {[%emt 0:01:01]} Nd7 {[%emt 0:01:14]} 11. Rb1 {[%emt 0:01:42]} f5 {[%emt 0:01:03]} 12. b4 {[%emt 0:00:58]} Kh8 {[%emt 0:04:57]} 13. Qc2 {[%emt 0:02:14]} c6 {[%emt 0:03:19]} 14. dxc6 {[%emt 0:20:28]} bxc6 {[%emt 0:05:52]} 15. c5 {[%emt 0:19:29]} d5 {[%emt 0:11:57]} 16. exd5 {[%emt 0:01:19]} cxd5 {[%emt 0:00:52]} 17. Bb5 {[%emt 0:04:56]} d4 {[%emt 0:06:16]} 18. Na4 {[%emt 0:01:22]} Nd5 {[%emt 0:01:00]} 19. Bc6 {[%emt 0:03:49]} Nf4 {[%emt 0:06:21]} 20. Bxa8 {[%emt 0:02:14]} Ba6 {[%emt 0:01:00]} 21. b5 {[%emt 0:07:49]} Qxa8 {[%emt 0:00:34]} 22. c6 {[%emt 0:01:46]} Rc8 {[%emt 0:04:35]} 23. Nf3 {[%emt 0:03:35]} Bxb5 {[%emt 0:03:16]} 24. Rxb5 {[%emt 0:01:32]} Rxc6 {[%emt 0:00:04]} 25. Qa2 {[%emt 0:08:02]} Qa6 {[%emt 0:06:36]} 26. Nxe5 {[%emt 0:01:38]} Bxe5 {[%emt 0:08:36]} 27. Rxe5 {[%emt 0:00:35]} Nh3+ {[%emt 0:00:40]} 28. gxh3 {[%emt 0:00:25]} Nxe5 {[%emt 0:00:10]} 29. Qd5 {[%emt 0:00:36]} Qe2 {[%emt 0:01:48]} 30. Kg2 {[%emt 0:03:21]} g5 {[%emt 0:09:41]} 31. Bb2 {[%emt 0:00:34]} g4 {[%emt 0:02:12]} 32. h4 {[%emt 0:00:29]} Rc4 {[%emt 0:03:52]} 33. Nb6 {[%emt 0:00:40]} Rc5 {[%emt 0:05:53]} 34. Qxd4 {[%emt 0:00:29]} Rb5 {[%emt 0:02:44]} 35. Nc4 {[%emt 0:00:24]} Rxb2 {[%emt 0:06:24]} 36. Qxb2 {[%emt 0:00:31]} 1-0

[Event "9th Amsterdam Science Park A 2019"]
[Site "Amsterdam"]
[Date "2019.07.06"]
[Round "1.6"]
[White "Elgersma, Simon"]
[Black "Bosboom, Manuel"]
[Result "1/2-1/2"]
[ECO "B90"]
[WhiteElo "2130"]
[BlackElo "2418"]
[Annotator "NA"]
[PlyCount "73"]
[EventDate "2019.07.06"]
[EventType "swiss"]
[EventCountry "NED"]
[SourceTitle "playchess.com"]
[Source "ChessBase"]
[SourceQuality "1"]
[TimeControl "40/5400+30:1800+30"]

1. e4 {[%emt 0:00:00]} c5 {[%emt 0:00:00]} 2. Nf3 {[%emt 0:00:00]} d6 {[%emt 0:00:49]} 3. d4 {[%emt 0:00:38]} cxd4 {[%emt 0:01:58]} 4. Nxd4 {[%emt 0:01:52]} Nf6 {[%emt 0:00:40]} 5. Nc3 {[%emt 0:00:07]} a6 {[%emt 0:01:43]} 6. h3 {[%emt 0:02:21]} e5 {[%emt 0:04:33]} 7. Nb3 {[%emt 0:00:08]} h5 {[%emt 0:02:55]} 8. Bg5 {[%emt 0:08:55]} Be7 {[%emt 0:01:42]} 9. Bxf6 {[%emt 0:05:18]} Bxf6 {[%emt 0:07:09]} 10. Nd5 {[%emt 0:00:12]} Nc6 {[%emt 0:05:04]} 11. Qd3 {[%emt 0:05:18]} Be6 {[%emt 0:07:27]} 12. O-O-O {[%emt 0:16:40]} O-O {[%emt 0:04:57]} 13. Kb1 {[%emt 0:04:09]} a5 {[%emt 0:04:44]} 14. h4 {[%emt 0:04:58]} a4 {[%emt 0:02:19]} 15. Nd2 {[%emt 0:08:04]} a3 {[%emt 0:02:03]} 16. b3 {[%emt 0:01:37]} Ra5 {[%emt 0:09:55]} 17. Nc4 {[%emt 0:05:11]} Bxd5 {[%emt 0:04:19]} 18. exd5 {[%emt 0:01:27]} Nb4 {[%emt 0:04:12]} 19. Qe4 {[%emt 0:01:48]} g6 {[%emt 0:03:12]} 20. g4 {[%emt 0:06:58]} Bg7 {[%emt 0:01:57]} 21. gxh5 {[%emt 0:02:28]} Qc7 {[%emt 0:04:37]} 22. Nxa5 {[%emt 0:05:30]} Qxa5 {[%emt 0:02:03]} 23. c3 {[%emt 0:02:48]} Na6 {[%emt 0:10:05]} 24. b4 {[%emt 0:02:16]} Qc7 {[%emt 0:00:19]} 25. Qc4 {[%emt 0:03:48]} Qb6 {[%emt 0:00:38]} 26. hxg6 {[%emt 0:01:45]} e4 {[%emt 0:03:37]} 27. Rh3 {[%emt 0:02:16]} Qxf2 {[%emt 0:04:20]} 28. Qe2 {[%emt 0:00:16]} Qf5 {[%emt 0:01:52]} 29. Bg2 {[%emt 0:01:18]} e3+ {[%emt 0:02:00]} 30. Qc2 {[%emt 0:02:44]} Qe5 {[%emt 0:02:14]} 31. Qd3 {[%emt 0:02:12]} e2 {[%emt 0:01:19]} 32. Re1 {[%emt 0:00:04]} Nxb4 {[%emt 0:00:16]} 33. Qxe2 {[%emt 0:00:29]} Qf5+ {[%emt 0:00:25]} 34. Qe4 {[%emt 0:01:10]} Qf2 {[%emt 0:00:07]} 35. Re2 {[%emt 0:01:01]} Qg1+ {[%emt 0:00:23]} 36. Re1 {[%emt 0:00:04]} Qf2 {[%emt 0:00:05]} 37. Re2 {[%emt 0:00:16]} 1/2-1/2

[Event "9th Amsterdam Science Park A 2019"]
[Site "Amsterdam"]
[Date "2019.07.06"]
[Round "1.7"]
[White "De Rover, Yong Hoon"]
[Black "Van Baar, Esper"]
[Result "0-1"]
[ECO "B90"]
[WhiteElo "2391"]
[BlackElo "2108"]
[Annotator "NA"]
[PlyCount "74"]
[EventDate "2019.07.06"]
[EventType "swiss"]
[EventCountry "NED"]
[SourceTitle "playchess.com"]
[Source "ChessBase"]
[SourceQuality "1"]
[TimeControl "40/5400+30:1800+30"]

1. e4 {[%emt 0:00:27]} c5 {[%emt 0:00:00]} 2. Nf3 {[%emt 0:00:19]} d6 {[%emt 0:00:00]} 3. d4 {[%emt 0:00:12]} cxd4 {[%emt 0:00:00]} 4. Nxd4 {[%emt 0:00:08]} Nf6 {[%emt 0:00:00]} 5. Nc3 {[%emt 0:00:11]} a6 {[%emt 0:00:00]} 6. Be3 {[%emt 0:00:26]} e5 {[%emt 0:00:43]} 7. Nb3 {[%emt 0:00:11]} Be7 {[%emt 0:00:08]} 8. f3 {[%emt 0:00:56]} Be6 {[%emt 0:00:31]} 9. Qd2 {[%emt 0:00:23]} O-O {[%emt 0:01:56]} 10. O-O-O {[%emt 0:02:32]} Nbd7 {[%emt 0:01:30]} 11. g4 {[%emt 0:03:40]} b5 {[%emt 0:00:05]} 12. g5 {[%emt 0:07:07]} Nh5 {[%emt 0:01:41]} 13. Nd5 {[%emt 0:03:28]} Bxd5 {[%emt 0:01:01]} 14. exd5 {[%emt 0:00:49]} f5 {[%emt 0:07:48]} 15. Rg1 {[%emt 0:06:03]} f4 {[%emt 0:03:49]} 16. Bf2 {[%emt 0:00:25]} Bxg5 {[%emt 0:04:23]} 17. Na5 {[%emt 0:01:03]} Be7 {[%emt 0:05:11]} 18. Kb1 {[%emt 0:04:46]} Qc7 {[%emt 0:16:18]} 19. Nc6 {[%emt 0:10:44]} Bd8 {[%emt 0:04:02]} 20. c4 {[%emt 0:07:00]} bxc4 {[%emt 0:03:49]} 21. Bxc4 {[%emt 0:01:02]} Nb8 {[%emt 0:04:08]} 22. Rc1 {[%emt 0:01:14]} Nxc6 {[%emt 0:02:48]} 23. Bb3 {[%emt 0:05:20]} a5 {[%emt 0:10:37]} 24. Rxc6 {[%emt 0:07:43]} Qd7 {[%emt 0:00:41]} 25. Qc2 {[%emt 0:00:39]} Qh3 {[%emt 0:03:13]} 26. Rxd6 {[%emt 0:15:06]} Qxf3 {[%emt 0:02:40]} 27. Rd7 {[%emt 0:04:00]} a4 {[%emt 0:12:40]} 28. Bc4 {[%emt 0:05:48]} Rc8 {[%emt 0:02:06]} 29. d6+ {[%emt 0:01:46]} Kh8 {[%emt 0:00:21]} 30. b3 {[%emt 0:01:46]} axb3 {[%emt 0:01:08]} 31. axb3 {[%emt 0:00:05]} Bf6 {[%emt 0:03:28]} 32. Qe2 {[%emt 0:02:53]} Qh3 {[%emt 0:00:23]} 33. Ra7 {[%emt 0:02:41]} Rb8 {[%emt 0:05:39]} 34. Ka2 {[%emt 0:03:13]} e4 {[%emt 0:00:47]} 35. Bc5 {[%emt 0:01:33]} Qc3 {[%emt 0:01:01]} 36. Ba3 {[%emt 0:00:27]} Qd4 {[%emt 0:00:37]} 37. Ra5 {[%emt 0:01:13]} Qxg1 {[%emt 0:00:13]} 0-1

[Event "9th Amsterdam Science Park A 2019"]
[Site "Amsterdam"]
[Date "2019.07.06"]
[Round "1.8"]
[White "Bogaard, Milo"]
[Black "Zwirs, Nico"]
[Result "0-1"]
[ECO "E16"]
[WhiteElo "2100"]
[BlackElo "2380"]
[Annotator "NA"]
[PlyCount "82"]
[EventDate "2019.07.06"]
[EventType "swiss"]
[EventCountry "NED"]
[SourceTitle "playchess.com"]
[Source "ChessBase"]
[SourceQuality "1"]
[TimeControl "40/5400+30:1800+30"]

1. c4 {[%emt 0:00:00]} e6 {[%emt 0:00:00]} 2. d4 {[%emt 0:01:14]} Nf6 {[%emt 0:00:09]} 3. Nf3 {[%emt 0:00:06]} b6 {[%emt 0:01:25]} 4. g3 {[%emt 0:01:25]} Bb7 {[%emt 0:01:15]} 5. Bg2 {[%emt 0:00:06]} Bb4+ {[%emt 0:00:05]} 6. Bd2 {[%emt 0:00:19]} Be7 {[%emt 0:00:24]} 7. O-O {[%emt 0:00:13]} O-O {[%emt 0:00:07]} 8. Nc3 {[%emt 0:00:10]} c6 {[%emt 0:05:47]} 9. e4 {[%emt 0:12:39]} d5 {[%emt 0:00:32]} 10. cxd5 {[%emt 0:10:28]} cxd5 {[%emt 0:00:47]} 11. exd5 {[%emt 0:09:01]} Nxd5 {[%emt 0:00:35]} 12. Ne5 {[%emt 0:03:36]} Bf6 {[%emt 0:22:39]} 13. Qb3 {[%emt 0:10:59]} Bxe5 {[%emt 0:07:11]} 14. dxe5 {[%emt 0:13:19]} Nd7 {[%emt 0:01:09]} 15. Nxd5 {[%emt 0:08:19]} Nc5 {[%emt 0:08:13]} 16. Qc4 {[%emt 0:13:27]} Bxd5 {[%emt 0:01:41]} 17. Bxd5 {[%emt 0:00:09]} exd5 {[%emt 0:00:07]} 18. Qd4 {[%emt 0:03:39]} Qd7 {[%emt 0:01:56]} 19. Bb4 {[%emt 0:01:03]} Rac8 {[%emt 0:00:08]} 20. Rac1 {[%emt 0:05:01]} Qb5 {[%emt 0:33:29]} 21. Bxc5 {[%emt 0:01:04]} bxc5 {[%emt 0:00:02]} 22. Qxd5 {[%emt 0:00:20]} Qxb2 {[%emt 0:00:11]} 23. Rxc5 Rxc5 24. Qxc5 {[%emt 0:01:21]} Qxa2 {[%emt 0:00:31]} 25. Qd4 {[%emt 0:00:58]} a6 {[%emt 0:09:14]} 26. Ra1 {[%emt 0:01:46]} Qe2 {[%emt 0:00:01]} 27. Qe3 {[%emt 0:01:19]} Qxe3 {[%emt 0:00:13]} 28. fxe3 {[%emt 0:00:04]} Ra8 {[%emt 0:00:01]} 29. Ra5 {[%emt 0:00:31]} Kf8 {[%emt 0:00:26]} 30. Kf2 {[%emt 0:00:07]} Ke7 {[%emt 0:00:26]} 31. Kf3 {[%emt 0:00:25]} Kd7 {[%emt 0:00:47]} 32. Ke4 {[%emt 0:00:11]} Kc6 {[%emt 0:00:34]} 33. g4 {[%emt 0:00:49]} Kb6 {[%emt 0:00:13]} 34. Ra1 {[%emt 0:00:03]} a5 {[%emt 0:00:02]} 35. h4 {[%emt 0:02:11]} a4 {[%emt 0:00:18]} 36. h5 {[%emt 0:00:52]} Kc6 {[%emt 0:00:47]} 37. Ra3 {[%emt 0:00:29]} Ra6 {[%emt 0:00:43]} 38. Kf5 {[%emt 0:00:32]} Kb5 {[%emt 0:00:43]} 39. Ra1 {[%emt 0:00:40]} a3 {[%emt 0:00:06]} 40. Rb1+ {[%emt 0:00:29]} Kc4 {[%emt 0:00:14]} 41. g5 {[%emt 0:01:51]} g6+ {[%emt 0:00:31]} 0-1